bitfinex/quotes_BTCUSD_20220303
["timestamp","ask_amount","ask_price","bid_price","bid_amount"]
[1646317686824,0.002,43833.0,43831.0,0.16834281]
[1646317688025,0.3,43837.0,43831.0,0.16834281]
[1646317688868,0.3,43837.0,43831.0,0.37720008]
[1646317689060,0.3,43837.0,43831.0,0.16834281]
[1646317689963,0.3,43837.0,43832.0,0.16676554]
[1646317690762,0.3,43837.0,43832.0,0.16976554]
[1646317690960,0.3,43837.0,43832.0,0.003]
[1646317692162,0.3,43837.0,43831.0,0.16834281]
[1646317693025,0.3,43837.0,43835.0,0.15717958]
[1646317693226,0.3,43837.0,43831.0,0.16834281]
[1646317694328,0.3,43837.0,43833.0,0.21709082]
[1646317695331,0.3,43837.0,43834.0,0.23787438]
[1646317695533,0.05,43844.0,43839.0,0.50612119]
[1646317695730,0.33187655,43850.0,43843.0,0.05659558]
[1646317695731,0.00019695,43850.0,43843.0,0.05659558]
[1646317695930,0.00019695,43850.0,43847.0,0.18355575]
[1646317696170,0.26842744,43852.0,43842.0,0.0456]
[1646317696371,0.3316796,43853.0,43843.0,0.3]
[1646317696573,0.00019696,43850.0,43843.0,0.3]
[1646317696775,0.00019696,43850.0,43842.0,0.0456]
[1646317696776,0.00019696,43850.0,43842.0,0.0486]
[1646317696971,0.32958956,43853.0,43843.0,0.17890805]
[1646317697171,0.32958956,43853.0,43843.0,0.47890805]
[1646317697371,0.26974243,43849.0,43843.0,0.17890805]
[1646317697572,0.05903046,43857.0,43843.0,0.17890805]
[1646317697769,0.02369141,43856.0,43843.0,0.17890805]
[1646317698372,0.057052,43853.0,43843.0,0.17890805]
[1646317698571,0.21913499,43850.0,43843.0,0.17890805]
[1646317698771,0.00198346,43857.0,43843.0,0.17990805]
[1646317698973,0.02368958,43856.0,43843.0,0.17990805]
[1646317699474,0.057051,43853.0,43843.0,0.17990805]
[1646317699908,0.20832936,43849.0,43843.0,0.17990805]
[1646317700115,0.00019695,43852.0,43843.0,0.17890805]
[1646317700814,0.00019695,43852.0,43844.0,0.3]
[1646317701009,0.00198346,43857.0,43844.0,0.3]
[1646317701209,0.00019695,43852.0,43844.0,0.3]
[1646317701610,0.00019695,43852.0,43848.0,0.18207264]
[1646317701814,0.00019695,43852.0,43844.0,0.3]
[1646317702011,0.00019695,43852.0,43844.0,0.35703612]
[1646317702212,0.00198346,43857.0,43844.0,0.35703612]
[1646317702413,0.00019695,43852.0,43844.0,0.35703612]
[1646317702812,0.00019695,43852.0,43844.0,0.36003612]
[1646317703211,0.00019695,43852.0,43845.0,0.057032]
[1646317703414,0.00198346,43857.0,43845.0,0.057032]
[1646317703678,0.00198346,43857.0,43844.0,0.36003612]
[1646317703679,0.00019695,43852.0,43844.0,0.36003612]
[1646317704085,0.00019695,43852.0,43850.0,0.20284367]
[1646317704280,0.00019695,43852.0,43851.0,0.3]
[1646317704487,0.00019695,43852.0,43850.0,0.20284367]
[1646317704681,0.00198346,43857.0,43851.0,0.3]
[1646317704882,0.00398346,43857.0,43851.0,0.301]
[1646317705081,0.00019695,43854.0,43852.0,0.0624597]
[1646317705286,0.00019695,43854.0,43853.0,0.3]
[1646317705785,0.00398346,43857.0,43853.0,1.01881]
[1646317705983,6.077e-05,43856.0,43853.0,1.01881]
[1646317706780,6.077e-05,43856.0,43855.0,0.71881]
[1646317706985,0.00198346,43857.0,43855.0,1.01881]
[1646317707183,0.00204423,43857.0,43856.0,1.01881]
[1646317707653,4.423e-05,43857.0,43856.0,1.11881]
[1646317707847,0.37940159,43877.0,43863.0,0.753009]
[1646317708150,0.37940159,43878.0,43864.0,0.3]
[1646317708547,0.01,43879.0,43867.0,0.15887323]
[1646317708548,0.38940159,43879.0,43867.0,0.15887323]
[1646317708747,0.01,43879.0,43867.0,0.15887323]
[1646317709349,0.005,43879.0,43867.0,0.45887323]
[1646317709748,0.26149735,43876.0,43867.0,0.45887323]
[1646317709948,0.005,43879.0,43867.0,0.15887323]
[1646317710153,0.005,43879.0,43868.0,1.0416]
[1646317710348,0.005,43879.0,43868.0,1.06441]
[1646317710749,0.005,43879.0,43868.0,0.3486]
[1646317710952,0.005,43879.0,43868.0,0.0486]
[1646317711182,0.14,43875.0,43868.0,0.003]
[1646317711381,0.14,43871.0,43868.0,0.003]
[1646317711587,0.005,43879.0,43868.0,0.003]
[1646317711588,0.14,43869.0,43868.0,0.003]
[1646317711983,0.005,43879.0,43868.0,0.003]
[1646317712284,0.00020177,43872.0,43866.0,0.696]
[1646317712483,0.00020177,43872.0,43868.0,0.71881]
[1646317712682,0.00020177,43879.0,43870.0,0.696]
[1646317712881,0.00020177,43879.0,43878.0,0.19049995]
[1646317713282,0.00020177,43879.0,43878.0,0.49049995]
[1646317713482,0.00020177,43879.0,43878.0,0.19049995]
[1646317714920,0.00020177,43879.0,43878.0,0.19249995]
[1646317715119,0.00020177,43879.0,43878.0,0.002]
[1646317716019,0.00020177,43879.0,43869.0,0.113996]
[1646317716319,0.00020177,43879.0,43872.0,0.19086671]
[1646317716918,6.059e-05,43878.0,43872.0,0.19086671]
[1646317717523,6.059e-05,43878.0,43872.0,0.24786371]
[1646317717723,6.059e-05,43878.0,43872.0,0.19086671]
[1646317718020,0.00020177,43879.0,43872.0,0.19086671]
[1646317718021,0.00020126,43877.0,43872.0,0.19086671]
[1646317718220,0.04040303,43885.0,43873.0,0.55]
[1646317718420,0.21,43886.0,43872.0,0.19086671]
[1646317719079,2.01250845,43886.0,43872.0,0.19086671]
[1646317719279,2.01250845,43886.0,43861.0,0.11400093]
[1646317719483,2.01250845,43886.0,43856.0,0.02589201]
[1646317719484,0.0456,43885.0,43858.0,0.02281]
[1646317719680,0.31139,43884.0,43858.0,0.02281]
[1646317719880,0.0456,43883.0,43861.0,0.009124]
[1646317720083,0.1456,43883.0,43861.0,0.009124]
[1646317720282,0.057016,43880.0,43863.0,0.15984428]
[1646317720481,0.14,43876.0,43861.0,0.18909616]
[1646317720683,0.21674473,43867.0,43861.0,0.18909616]
[1646317720882,0.3,43875.0,43861.0,0.18909616]
[1646317721287,0.057026,43873.0,43858.0,0.006]
[1646317721484,0.3456,43872.0,43858.0,0.006]
[1646317721883,0.28386444,43867.0,43858.0,0.006]
[1646317722738,0.28386444,43867.0,43857.0,0.008035]
[1646317723032,0.28386444,43867.0,43859.0,0.17373264]
[1646317723432,0.3,43866.0,43859.0,0.17373264]
[1646317723831,0.057033,43866.0,43859.0,0.17373264]
[1646317724232,0.353409,43865.0,43859.0,0.17373264]
[1646317724832,0.353409,43865.0,43859.0,0.17681664]
[1646317725233,0.56368404,43865.0,43859.0,0.004]
[1646317725435,0.353409,43863.0,43859.0,0.004]
[1646317725635,0.353409,43861.0,43859.0,0.004]
[1646317725833,0.0456,43860.0,43859.0,0.004]
[1646317726032,0.399009,43860.0,43859.0,0.004]
[1646317726280,0.399009,43860.0,43849.0,0.16851056]
[1646317726478,0.22341591,43852.0,43851.0,0.00081871]
[1646317727077,0.2232212,43852.0,43851.0,0.00081871]
[1646317727275,0.3632212,43852.0,43851.0,0.00081871]
[1646317727476,0.3632212,43852.0,43849.0,0.16851056]
[1646317727678,0.14,43850.0,43849.0,0.16851056]
[1646317727879,0.14,43850.0,43849.0,0.009126]
[1646317728881,0.69497109,43850.0,43847.0,0.00301519]
[1646317729080,0.493409,43848.0,43847.0,0.00301519]
[1646317729280,0.399009,43848.0,43847.0,0.00301519]
[1646317729481,0.399009,43848.0,43847.0,0.00020195]
[1646317729482,0.53462589,43848.0,43847.0,0.00020195]
[1646317729680,0.49942092,43848.0,43847.0,0.00020195]
[1646317729930,0.28752418,43845.0,43844.0,0.003]
[1646317730136,0.28752418,43845.0,43844.0,0.21276126]
[1646317730330,0.057056,43846.0,43844.0,0.21276126]
[1646317731131,0.353409,43845.0,43844.0,0.21276126]
[1646317731333,0.64037299,43845.0,43844.0,0.21276126]
[1646317731532,0.64037299,43845.0,43843.0,0.00494558]
[1646317731738,0.353409,43844.0,43843.0,0.00494558]
[1646317732133,0.353409,43844.0,43843.0,0.00474944]
[1646317732932,0.355409,43844.0,43843.0,0.00474944]
[1646317734177,0.353409,43844.0,43843.0,0.00474944]
[1646317734576,0.34730715,43844.0,43843.0,0.00474944]
[1646317734779,0.34426715,43844.0,43843.0,0.00474944]
[1646317734978,0.34526715,43844.0,43843.0,0.00474944]
[1646317735474,0.58037828,43844.0,43843.0,0.00474944]
[1646317736476,0.62597828,43844.0,43843.0,0.00474944]
[1646317736874,0.38986715,43844.0,43843.0,0.00474944]
[1646317737077,0.006,43849.0,43843.0,0.00474944]
[1646317738125,0.27245919,43851.0,43843.0,0.00474944]
[1646317738324,0.057039,43854.0,43843.0,0.00474944]
[1646317738528,0.057039,43854.0,43847.0,0.18811087]
[1646317739129,0.114077,43858.0,43847.0,0.18811087]
[1646317739130,0.114077,43858.0,43848.0,0.009192]
[1646317739328,0.114077,43858.0,43847.0,0.18811087]
[1646317739528,0.1114,43864.0,43847.0,0.18811087]
[1646317739529,0.05703,43859.0,43849.0,0.20536586]
[1646317739728,0.05703,43859.0,43850.0,0.009187]
[1646317739928,0.05703,43859.0,43848.0,0.30018583]
[1646317740131,0.05703,43859.0,43848.0,0.00018583]
[1646317740427,0.1140703,43859.0,43848.0,0.00018583]
[1646317740628,0.1140703,43859.0,43847.0,0.18811087]
[1646317740826,0.1140703,43859.0,43848.0,0.00018583]
[1646317741029,0.057042,43850.0,43848.0,0.00018583]
[1646317741469,0.653421,43849.0,43848.0,0.00018583]
[1646317741671,0.13561689,43849.0,43848.0,0.00018583]
[1646317741868,0.13561689,43849.0,43843.0,0.00774944]
[1646317741869,0.7,43848.0,43843.0,0.00774944]
[1646317742071,0.13561689,43844.0,43843.0,0.00474944]
[1646317742268,0.36369231,43844.0,43843.0,0.00474944]
[1646317742472,0.76271331,43844.0,43843.0,0.00474944]
[1646317742671,0.46635131,43844.0,43843.0,0.00474944]
[1646317742869,0.82377231,43844.0,43843.0,0.00474944]
[1646317743070,0.48226837,43844.0,43843.0,0.00474944]
[1646317743670,0.42520937,43844.0,43843.0,0.00474944]
[1646317743869,0.41329231,43844.0,43843.0,0.00474944]
[1646317744473,0.18521689,43844.0,43843.0,0.00474944]
[1646317744770,0.0496,43844.0,43843.0,0.00474944]
[1646317745054,0.0456,43844.0,43843.0,0.00474944]
[1646317745651,0.05706,43845.0,43843.0,0.00474944]
[1646317746255,0.05706,43845.0,43844.0,0.009203]
[1646317746952,0.06306,43845.0,43844.0,0.009203]
[1646317747258,0.006,43845.0,43844.0,0.009203]
[1646317747556,0.0119159,43858.0,43845.0,0.012]
[1646317747753,0.15,43867.0,43845.0,0.012]
[1646317747952,0.23622068,43857.0,43846.0,0.009188]
[1646317748152,0.0114,43864.0,43846.0,0.0002126]
[1646317748354,0.0114,43864.0,43854.0,0.16116566]
[1646317748904,0.0114,43864.0,43855.0,0.309179]
[1646317748905,0.11406,43864.0,43855.0,0.309179]
[1646317749201,0.11406,43864.0,43854.0,0.001]
[1646317749202,0.28917283,43864.0,43854.0,0.001]
[1646317750202,0.28917283,43864.0,43854.0,0.21642179]
[1646317751003,0.28917283,43864.0,43854.0,0.21842179]
[1646317751407,0.0114,43868.0,43855.0,0.009179]
[1646317751606,0.068429,43868.0,43855.0,0.3]
[1646317751806,0.06863019,43868.0,43855.0,0.3]
[1646317752522,0.25537758,43865.0,43855.0,0.3]
[1646317752725,0.01139,43870.0,43856.0,0.009176]
[1646317752928,0.0002012,43868.0,43857.0,0.009173]
[1646317753324,0.0002012,43868.0,43858.0,0.696]
[1646317753521,0.0002012,43868.0,43859.0,1.005172]
[1646317753724,0.0002012,43868.0,43863.0,0.20403734]
[1646317753925,0.05,43874.0,43864.0,0.3]
[1646317754123,0.00019623,43868.0,43865.0,0.21682739]
[1646317754923,0.00019623,43868.0,43865.0,0.003]
[1646317755123,0.06133055,43879.0,43865.0,0.003]
[1646317755330,0.00019624,43869.0,43865.0,0.003]
[1646317756178,0.50351527,43879.0,43864.0,0.16894344]
[1646317756379,0.01139,43878.0,43863.0,0.20713988]
[1646317756582,0.01139,43878.0,43864.0,0.009166]
[1646317756583,0.00019624,43869.0,43864.0,0.009166]
[1646317756777,0.00019624,43869.0,43865.0,0.009165]
[1646317756977,0.00019624,43869.0,43863.0,0.20713988]
[1646317756978,0.00019624,43869.0,43866.0,0.009164]
[1646317757177,0.00019624,43869.0,43864.0,0.002]
[1646317757378,0.00019624,43869.0,43865.0,0.009164]
[1646317757577,0.20347492,43870.0,43864.0,0.002]
[1646317757780,0.057019,43875.0,43864.0,0.002]
[1646317758181,0.057019,43875.0,43863.0,0.20713988]
[1646317758384,0.057019,43875.0,43856.0,0.3]
[1646317758581,0.057019,43875.0,43852.0,0.00078701]
[1646317758789,0.28562098,43863.0,43853.0,0.20839177]
[1646317758981,0.28562098,43863.0,43856.0,0.002]
[1646317759183,0.28562098,43863.0,43857.0,0.009177]
[1646317759383,0.057028,43868.0,43857.0,0.009177]
[1646317759582,0.057028,43868.0,43856.0,0.002]
[1646317759785,0.353421,43867.0,43856.0,0.002]
[1646317760041,0.353421,43866.0,43856.0,0.002]
[1646317760238,0.353421,43866.0,43845.0,0.012]
[1646317760239,0.057049,43864.0,43846.0,0.01139]
[1646317760438,0.114089,43860.0,43845.0,0.012]
[1646317760637,0.399021,43859.0,43845.0,0.012]
[1646317760837,0.353421,43858.0,43848.0,0.3424665]
[1646317761037,0.13561689,43854.0,43848.0,0.18263676]
[1646317761238,0.13561689,43850.0,43848.0,0.18263676]
[1646317761438,0.13561689,43849.0,43848.0,0.18263676]
[1646317761640,0.13561689,43849.0,43846.0,0.007]
[1646317761839,0.353421,43858.0,43846.0,0.007]
[1646317762038,0.0456,43858.0,43846.0,0.19987733]
[1646317762237,0.0456,43858.0,43846.0,0.19287733]
[1646317762438,0.0456,43858.0,43850.0,0.00021281]
[1646317762639,0.13561689,43854.0,43850.0,0.00021281]
[1646317762838,0.13561689,43851.0,43850.0,0.00021281]
[1646317763438,0.13561689,43851.0,43847.0,0.20354433]
[1646317763670,0.13561689,43848.0,43847.0,0.20354433]
[1646317764873,0.13561689,43848.0,43847.0,0.20654433]
[1646317765873,0.13561689,43848.0,43847.0,0.21573733]
[1646317766173,0.13561689,43848.0,43847.0,0.20354433]
[1646317767274,0.1114,43858.0,43847.0,0.20354433]
[1646317767535,0.0114,43858.0,43848.0,0.009196]
[1646317767730,0.33161825,43863.0,43848.0,0.009196]
[1646317767925,0.05,43864.0,43848.0,0.009196]
[1646317767926,0.38161825,43864.0,43848.0,0.009196]
[1646317768124,0.05,43864.0,43848.0,0.728006]
[1646317768327,0.05,43864.0,43855.0,0.009179]
[1646317768525,0.34301825,43865.0,43854.0,0.2157214]
[1646317768723,0.33161825,43865.0,43854.0,0.2157214]
[1646317768923,0.33161825,43865.0,43855.0,0.002]
[1646317769323,0.33161825,43865.0,43856.0,0.009178]
[1646317769524,0.27654873,43865.0,43856.0,0.009177]
[1646317769727,0.27654873,43865.0,43858.0,0.00019635]
[1646317769923,0.33161825,43866.0,43858.0,0.00019635]
[1646317770725,0.01139,43866.0,43857.0,0.19287281]
[1646317770924,0.26831536,43866.0,43859.0,0.00019635]
[1646317771370,0.11139,43870.0,43859.0,0.00019635]
[1646317771973,0.11139,43870.0,43858.0,0.002]
[1646317772174,0.01139,43870.0,43861.0,0.2105659]
[1646317772381,0.0001963,43871.0,43862.0,0.309174]
[1646317772577,0.0001963,43871.0,43861.0,0.2105659]
[1646317772578,0.23181359,43871.0,43863.0,0.009166]
[1646317772775,0.23181359,43871.0,43859.0,0.00019635]
[1646317772978,0.3,43870.0,43859.0,0.00019635]
[1646317773176,0.3,43870.0,43857.0,0.19587281]
[1646317773474,0.3,43870.0,43857.0,0.003]
[1646317773675,0.28401808,43863.0,43857.0,0.003]
[1646317773876,0.057033,43869.0,43858.0,0.00917]
[1646317774077,0.057033,43869.0,43857.0,0.003]
[1646317774276,0.057033,43869.0,43854.0,0.16957574]
[1646317774578,0.057033,43869.0,43855.0,0.009176]
[1646317775029,0.30006042,43871.0,43855.0,0.009176]
[1646317775229,6.042e-05,43871.0,43855.0,0.123215]
[1646317775428,0.05,43874.0,43855.0,0.123215]
[1646317775828,6.042e-05,43871.0,43865.0,0.15799637]
[1646317776028,6.042e-05,43871.0,43866.0,0.009163]
[1646317776228,6.042e-05,43871.0,43865.0,0.15799637]
[1646317776728,0.23184484,43872.0,43865.0,0.15799637]
[1646317776930,0.00020073,43871.0,43865.0,0.15799637]
[1646317777131,0.00020073,43871.0,43865.0,0.15899637]
[1646317777929,0.11139,43876.0,43865.0,0.15899637]
[1646317778129,0.00020073,43871.0,43865.0,0.15899637]
[1646317778330,0.00020073,43871.0,43865.0,0.15799637]
[1646317778992,0.05702,43875.0,43865.0,0.15999637]
[1646317779394,0.00020073,43871.0,43865.0,0.15999637]
[1646317780196,0.05702,43875.0,43865.0,0.15799637]
[1646317780395,0.01139,43877.0,43865.0,0.15793459]
[1646317780596,0.00020073,43871.0,43865.0,0.15793459]
[1646317780993,0.00020073,43871.0,43865.0,0.15993459]
[1646317781395,0.01139,43877.0,43865.0,0.15993459]
[1646317781797,0.1,43878.0,43865.0,0.15993459]
[1646317781798,0.00020073,43871.0,43865.0,0.15993459]
[1646317782197,0.00020073,43871.0,43866.0,0.009163]
[1646317782427,0.00020073,43871.0,43865.0,0.15993459]
[1646317782628,0.05702,43875.0,43865.0,0.15993459]
[1646317782831,0.21594921,43873.0,43865.0,0.002]
[1646317783031,0.00020073,43871.0,43865.0,0.002]
[1646317783231,0.00020073,43871.0,43860.0,0.001]
[1646317783829,0.21594921,43873.0,43860.0,0.001]
[1646317783830,0.21594921,43873.0,43860.0,0.1898472]
[1646317784031,0.00020072,43871.0,43860.0,0.1898472]
[1646317784231,0.00020072,43871.0,43860.0,0.1888472]
[1646317784835,0.00020072,43871.0,43859.0,0.20186031]
[1646317785039,0.353421,43869.0,43855.0,0.003]
[1646317785238,0.05703,43870.0,43859.0,0.00019695]
[1646317785239,0.3,43868.0,43859.0,0.00019695]
[1646317785439,0.21265961,43864.0,43859.0,0.00019695]
[1646317785635,0.0001969,43871.0,43859.0,0.00019695]
[1646317785636,0.3456,43863.0,43859.0,0.00019695]
[1646317785836,0.0001969,43871.0,43859.0,0.00019695]
[1646317785837,0.0456,43862.0,43859.0,0.00019695]
[1646317786036,0.13561689,43860.0,43859.0,0.00019695]
[1646317786283,0.13561689,43860.0,43858.0,0.1710575]
[1646317786480,0.13561689,43859.0,43858.0,0.17125445]
[1646317787280,0.13561689,43859.0,43858.0,0.00019695]
[1646317787486,0.13561689,43859.0,43849.0,0.0114]
[1646317787683,0.0456,43862.0,43856.0,0.00019696]
[1646317787886,0.13561689,43858.0,43856.0,0.00019696]
[1646317788088,0.13561689,43857.0,43856.0,0.00019696]
[1646317788685,0.13561689,43857.0,43855.0,0.21716366]
[1646317788881,0.3,43864.0,43855.0,0.21716366]
[1646317789082,0.102639,43865.0,43855.0,0.21716366]
[1646317789483,0.2249695,43861.0,43855.0,0.21716366]
[1646317789682,0.102639,43865.0,43855.0,0.21716366]
[1646317790140,0.102639,43865.0,43856.0,0.00019689]
[1646317790742,0.0456,43865.0,43856.0,0.00019689]
[1646317790942,0.0456,43865.0,43856.0,0.00119689]
[1646317791140,0.0456,43865.0,43856.0,0.001]
[1646317791340,0.0456,43865.0,43858.0,0.00019688]
[1646317791544,0.353421,43864.0,43858.0,0.00019688]
[1646317792140,0.353421,43865.0,43858.0,0.00019688]
[1646317792344,0.3,43866.0,43855.0,0.21716366]
[1646317792541,0.3,43866.0,43859.0,0.00019688]
[1646317792542,0.353421,43865.0,43859.0,0.00019688]
[1646317792740,0.13561689,43861.0,43859.0,0.00019688]
[1646317792941,0.13561689,43860.0,43859.0,0.00019688]
[1646317793542,0.13561689,43860.0,43855.0,0.21716366]
[1646317793801,0.353421,43865.0,43857.0,0.00019689]
[1646317794194,0.3,43866.0,43857.0,0.00019689]
[1646317794796,0.3,43866.0,43859.0,0.00019688]
[1646317794997,0.13561689,43862.0,43859.0,0.00019688]
[1646317795197,0.13561689,43860.0,43859.0,0.00019688]
[1646317795897,0.13561689,43860.0,43857.0,0.002]
[1646317796095,0.3,43866.0,43857.0,0.00219689]
[1646317796296,0.3,43866.0,43857.0,0.00019689]
[1646317797000,0.3,43866.0,43857.0,0.00219689]
[1646317797196,0.3,43866.0,43859.0,0.00019688]
[1646317797437,0.3,43866.0,43860.0,0.055975]
[1646317797832,0.3,43866.0,43860.0,0.112996]
[1646317798233,0.353421,43865.0,43860.0,0.055975]
[1646317798440,0.0456,43864.0,43860.0,0.055975]
[1646317798634,0.353421,43863.0,43860.0,0.055975]
[1646317798934,0.353421,43861.0,43860.0,0.055975]
[1646317799234,0.77723137,43861.0,43860.0,0.055975]
[1646317800032,0.91284826,43861.0,43860.0,0.055975]
[1646317800232,0.24598786,43861.0,43860.0,0.055975]
[1646317800434,0.3,43866.0,43860.0,0.055975]
[1646317800435,0.3,43866.0,43861.0,0.009172]
[1646317801037,0.13561689,43862.0,43861.0,0.312172]
[1646317801285,0.13561689,43862.0,43861.0,0.003]
[1646317801286,0.78903789,43862.0,43861.0,0.003]
[1646317801504,0.653421,43862.0,43861.0,0.003]
[1646317801686,1.353421,43861.0,43860.0,0.021921]
[1646317801886,1.353421,43861.0,43845.0,0.012]
[1646317801887,0.053821,43859.0,43845.0,0.012]
[1646317802085,0.699021,43858.0,43845.0,0.012]
[1646317802285,0.13561689,43854.0,43849.0,0.00078771]
[1646317802487,0.13561689,43850.0,43849.0,0.00078771]
[1646317802691,0.53463789,43850.0,43849.0,0.00078771]
[1646317802988,0.44158099,43850.0,43849.0,0.00078771]
[1646317803288,0.08815999,43850.0,43847.0,0.00019692]
[1646317803490,0.04255999,43848.0,43847.0,0.00019692]
[1646317803887,0.005,43855.0,43848.0,0.08511998]
[1646317804090,0.0930569,43851.0,43848.0,0.08511998]
[1646317804289,0.005,43855.0,43849.0,0.009191]
[1646317804491,0.005,43855.0,43850.0,0.00919]
[1646317804690,0.005,43855.0,43850.0,0.07970198]
[1646317804923,0.005,43855.0,43852.0,0.009188]
[1646317805125,0.05,43864.0,43853.0,0.19110956]
[1646317805323,0.3,43870.0,43854.0,0.00918]
[1646317805524,0.01139,43869.0,43853.0,0.19110956]
[1646317805728,0.01139,43869.0,43861.0,0.19602674]
[1646317806125,0.31139,43870.0,43861.0,0.19602674]
[1646317806328,0.22287289,43863.0,43861.0,0.19602674]
[1646317806525,0.01139,43870.0,43861.0,0.19602674]
[1646317807026,0.001,43868.0,43862.0,0.009172]
[1646317807629,0.001,43868.0,43864.0,0.009168]
[1646317808025,0.001,43868.0,43866.0,0.009165]
[1646317808429,0.001,43868.0,43862.0,0.01139]
[1646317808680,0.001,43868.0,43861.0,0.19702674]
[1646317809080,0.001,43868.0,43862.0,0.009166]
[1646317809280,0.2844074,43871.0,43864.0,0.38692456]
[1646317809478,0.28460423,43871.0,43864.0,0.34389798]
[1646317809677,0.28460423,43871.0,43868.0,0.1661177]
[1646317810079,0.28460423,43871.0,43864.0,0.34389798]
[1646317810281,0.3,43870.0,43864.0,0.34389798]
[1646317810584,0.399021,43869.0,43864.0,0.34389798]
[1646317811180,0.0930569,43865.0,43864.0,0.34389798]
[1646317811385,0.0456,43869.0,43864.0,0.34389798]
[1646317811579,0.353421,43868.0,43864.0,0.34389798]
[1646317812423,0.353421,43868.0,43864.0,0.40092198]
[1646317812628,0.0930569,43865.0,43864.0,0.40092198]
[1646317813021,0.005,43868.0,43864.0,0.40092198]
[1646317813228,0.005,43868.0,43865.0,0.24472839]
[1646317813427,0.005,43868.0,43865.0,0.009167]
[1646317813823,0.005,43868.0,43867.0,0.02281]
[1646317814028,0.05,43883.0,43877.0,0.170809]
[1646317814227,0.21,43886.0,43878.0,0.24550916]
[1646317814425,0.21,43886.0,43877.0,0.148452]
[1646317814625,0.21,43886.0,43881.0,0.34389798]
[1646317815324,0.41327565,43886.0,43881.0,0.34389798]
[1646317815524,0.00150479,43882.0,43881.0,0.34389798]
[1646317815730,0.34991379,43882.0,43881.0,0.34389798]
[1646317816030,0.6735991,43882.0,43881.0,0.30950819]
[1646317816292,0.6735991,43882.0,43863.0,0.057021]
[1646317816293,0.08313539,43879.0,43863.0,0.057021]
[1646317816498,0.08313539,43879.0,43853.0,0.17705965]
[1646317816499,0.353412,43869.0,43853.0,0.17705965]
[1646317816696,0.353412,43869.0,43857.0,0.18462857]
[1646317816697,0.3316384,43867.0,43857.0,0.18462857]
[1646317816891,0.09155211,43863.0,43851.0,0.228031]
[1646317817090,0.353412,43862.0,43851.0,0.228031]
[1646317817293,0.399012,43862.0,43851.0,0.228031]
[1646317817491,0.26818427,43853.0,43851.0,0.228031]
[1646317817693,0.26818427,43853.0,43849.0,0.05704]
[1646317817893,0.353412,43852.0,43848.0,0.09097295]
[1646317818292,0.353412,43852.0,43848.0,0.08597295]
[1646317818694,0.0114,43857.0,43848.0,0.27355615]
[1646317818893,0.0114,43859.0,43848.0,0.27355615]
[1646317819094,0.0456,43860.0,43848.0,0.27555615]
[1646317819492,0.1,43861.0,43848.0,0.27555615]
[1646317819692,0.1,43861.0,43848.0,0.20119198]
[1646317819693,0.353412,43860.0,43848.0,0.20119198]
[1646317819945,0.4316384,43861.0,43848.0,0.08711998]
[1646317819946,0.353412,43856.0,43848.0,0.08711998]
[1646317820145,0.353412,43852.0,43848.0,0.08711998]
[1646317820346,0.353412,43850.0,43848.0,0.08511998]
[1646317820543,0.399012,43850.0,43848.0,0.08511998]
[1646317820744,0.63913612,43850.0,43848.0,0.08511998]
[1646317820945,0.09155211,43849.0,43848.0,0.08511998]
[1646317821144,0.49056411,43849.0,43848.0,0.08511998]
[1646317821548,0.068455,43855.0,43848.0,0.08511998]
[1646317821549,0.0114,43855.0,43848.0,0.38511998]
[1646317821746,0.3316384,43861.0,43848.0,0.38511998]
[1646317821949,0.353412,43860.0,43848.0,0.08511998]
[1646317822644,0.353412,43859.0,43852.0,0.000213]
[1646317822944,0.09155211,43855.0,43852.0,0.000213]
[1646317823143,0.09155211,43853.0,43849.0,0.041451]
[1646317823345,0.1,43861.0,43849.0,0.041451]
[1646317823545,0.3316384,43862.0,43849.0,0.341451]
[1646317823791,0.22329881,43863.0,43849.0,0.341451]
[1646317823983,0.0114,43864.0,43849.0,0.341451]
[1646317824185,0.05,43869.0,43849.0,0.341451]
[1646317824186,0.3316384,43866.0,43849.0,1.037451]
[1646317824488,0.05,43869.0,43863.0,0.057018]
[1646317824489,0.3316384,43869.0,43863.0,0.057018]
[1646317824683,0.3316384,43871.0,43864.0,0.3]
[1646317824883,0.3316384,43871.0,43863.0,0.057018]
[1646317825083,0.3316384,43871.0,43863.0,0.059018]
[1646317825283,0.353412,43870.0,43863.0,0.002]
[1646317825489,0.3316384,43868.0,43863.0,0.002]
[1646317825784,0.3316384,43864.0,43863.0,0.002]
[1646317825985,0.77660251,43864.0,43863.0,0.00180001]
[1646317826185,1.00374592,43864.0,43863.0,0.00180001]
[1646317826384,1.00374592,43864.0,43852.0,0.15628299]
[1646317826385,0.91219381,43864.0,43852.0,0.15628299]
[1646317826585,0.6850504,43863.0,43851.0,0.114068]
[1646317826787,0.3316384,43864.0,43857.0,0.15662348]
[1646317827190,0.3316384,43867.0,43857.0,0.14082348]
[1646317827428,0.01339,43869.0,43857.0,0.14082348]
[1646317827429,0.00020126,43864.0,43857.0,0.14082348]
[1646317827630,0.2775447,43864.0,43857.0,0.14082348]
[1646317827825,0.2775447,43864.0,43860.0,0.25957064]
[1646317828227,0.00020126,43864.0,43860.0,0.25957064]
[1646317828428,0.3316384,43868.0,43860.0,0.25957064]
[1646317828632,0.00020126,43864.0,43860.0,0.25957064]
[1646317829026,0.00020126,43864.0,43860.0,0.26157064]
[1646317829228,0.00020126,43864.0,43860.0,0.059023]
[1646317829426,0.00020126,43864.0,43860.0,0.002]
[1646317829630,0.09155211,43861.0,43860.0,0.002]
[1646317829827,0.00020126,43864.0,43860.0,0.002]
[1646317830227,0.00020126,43864.0,43861.0,0.15600454]
[1646317830631,0.00020126,43864.0,43862.0,0.3]
[1646317830828,0.05,43871.0,43864.0,0.114014]
[1646317831027,0.3316384,43875.0,43865.0,0.51780109]
[1646317831274,0.28751621,43875.0,43865.0,0.51780109]
[1646317831480,0.3316384,43876.0,43865.0,0.51780109]
[1646317831876,0.3316384,43876.0,43868.0,0.15762924]
[1646317832277,0.00020126,43873.0,43868.0,0.15762924]
[1646317832476,0.00020126,43873.0,43868.0,0.45762924]
[1646317833076,0.08313539,43879.0,43868.0,0.46062924]
[1646317833276,0.08313539,43879.0,43873.0,0.057001]